lending/lending_fUSD_20251124
["ID","MTS","AMOUNT","RATE_DAILY","PERIOD"]
[394783811,1763944245362,-151.0,0.00039439,120]
[394783812,1763944245372,-151.0,0.00039439,120]
[394783813,1763944245381,-151.0,0.00039439,120]
[394783814,1763944245391,-151.0,0.00039439,120]
[394783815,1763944245400,-151.0,0.00039439,120]
[394783816,1763944245409,-151.0,0.00039439,120]
[394783817,1763944245418,-151.0,0.00039439,120]
[394783818,1763944245428,-156.868831,0.00039439,120]
[394783819,1763944245437,-151.0,0.00039439,120]
[394783820,1763944245446,-151.0,0.00039439,120]
[394783821,1763944245455,-152.152447,0.00039439,120]
[394783822,1763944245464,-151.0,0.00039439,120]
[394783823,1763944245478,-161.513378,0.00039439,120]
[394783824,1763944245487,-151.0,0.00039439,120]
[394783825,1763944245497,-151.0,0.00039439,120]
[394783826,1763944245506,-151.0,0.00039439,120]
[394783827,1763944245517,-151.0,0.00039439,120]
[394783828,1763944245526,-151.0,0.00039439,120]
[394783829,1763944245537,-151.0,0.00039439,28]
[394783830,1763944245547,-151.0,0.00039439,120]
[394783831,1763944245559,-151.0,0.00039439,120]
[394783832,1763944245569,-151.0,0.00039439,120]
[394783833,1763944245578,-151.0,0.00039439,120]
[394783834,1763944245587,-436.073383,0.00039439,120]
[394783835,1763944245596,-436.073383,0.00039439,120]
[394783836,1763944245606,-151.0,0.00039439,120]
[394783837,1763944245615,-436.073383,0.00039439,120]
[394783838,1763944245624,-436.073383,0.00039439,120]
[394783839,1763944245634,-151.0,0.00039439,120]
[394783840,1763944245642,-151.0,0.00039439,120]
[394783841,1763944245652,-151.0,0.00039439,120]
[394783842,1763944245661,-151.0,0.00039439,120]
[394783843,1763944245671,-151.0,0.00039439,120]
[394783844,1763944245680,-634.404637,0.00039439,120]
[394783845,1763944245691,-634.404637,0.00039439,120]
[394783846,1763944245701,-151.0,0.00039439,120]
[394783847,1763944245710,-634.404637,0.00039439,120]
[394783848,1763944245719,-151.0,0.00039439,30]
[394783849,1763944245728,-634.404637,0.00039439,120]
[394783850,1763944245738,-151.0,0.00039439,120]
[394783851,1763944245747,-151.0,0.00039439,120]
[394783852,1763944245755,-185.34056,0.00039439,120]
[394783853,1763944245764,-288.394712,0.00039439,120]
[394783854,1763944245774,-159.242683,0.00039439,120]
[394783855,1763944245783,-151.0,0.00039439,120]
[394783856,1763944245792,-151.0,0.00039439,120]
[394783857,1763944245802,-151.0,0.00039439,120]
[394783858,1763944245811,-185.869689,0.00039439,120]
[394783859,1763944245820,-151.0,0.00039439,120]
[394783860,1763944245830,-151.0,0.00039439,120]
[394783861,1763944245839,-151.0,0.00039439,120]
[394783862,1763944245849,-232.627023,0.00039439,120]
[394783863,1763944245859,-151.0,0.00039439,120]
[394783864,1763944245869,-294.201837,0.00039439,120]
[394783865,1763944245879,-232.627023,0.00039439,120]
[394783866,1763944245888,-232.627023,0.00039439,120]
[394783867,1763944245898,-232.627023,0.00039439,120]
[394783868,1763944245908,-151.0,0.00039439,120]
[394783869,1763944245918,-151.0,0.00039439,120]
[394783870,1763944245929,-151.0,0.00039439,15]
[394783871,1763944245938,-151.0,0.00039439,15]
[394783872,1763944245947,-157.046347,0.00039439,30]
[394783873,1763944245956,-151.0,0.00039439,15]
[394783874,1763944245966,-736.385214,0.00039439,120]
[394783875,1763944245976,-151.0,0.00039439,120]
[394783876,1763944245986,-736.385214,0.00039439,120]
[394783877,1763944245996,-151.0,0.00039439,120]
[394783878,1763944246005,-151.0,0.00039439,120]
[394783879,1763944246015,-736.385214,0.00039439,120]
[394783880,1763944246024,-151.0,0.00039439,120]
[394783881,1763944246033,-736.385214,0.00039439,120]
[394783882,1763944246043,-151.0,0.00039439,120]
[394783883,1763944246052,-151.0,0.00039439,120]
[394783884,1763944246062,-516.012086,0.00039439,120]
[394783885,1763944246072,-151.0,0.00039439,120]
[394783886,1763944246081,-151.0,0.00039439,120]
[394783887,1763944246091,-516.012086,0.00039439,120]
[394783888,1763944246101,-516.012086,0.00039439,120]
[394783889,1763944246110,-516.012086,0.00039439,120]
[394783890,1763944246119,-151.0,0.00039439,120]
[394783891,1763944246128,-151.0,0.00039439,120]
[394783892,1763944246138,-873.172326,0.00039439,120]
[394783893,1763944246147,-873.172326,0.00039439,120]
[394783894,1763944246157,-873.172326,0.00039439,120]
[394783895,1763944246166,-873.172326,0.00039439,120]
[394783896,1763944246176,-500.0,0.00039447,8]
[394783897,1763944246185,-485.15673483,0.00039447,8]
[394783899,1763944246195,-500.0,0.00039447,8]
[394783901,1763944246204,-500.0,0.00039447,8]
[394783903,1763944246213,-500.0,0.00039447,8]
[394783905,1763944246222,-151.0,0.00039451,120]
[394783907,1763944246232,-151.0,0.00039451,120]
[394783909,1763944246241,-151.0,0.00039451,120]
[394783913,1763944246250,-151.0,0.00039451,120]
[394783916,1763944246260,-151.0,0.00039451,120]
[394783919,1763944246269,-151.0,0.00039451,120]
[394783922,1763944246279,-151.0,0.00039451,120]
[394783925,1763944246288,-166.038429,0.00039451,120]
[394783928,1763944246298,-154.757257,0.00039451,120]
[394783931,1763944246307,-153.912815,0.00039451,120]
[394783934,1763944246316,-159.53789,0.00039451,120]
[394783937,1763944246326,-156.450597,0.00039451,120]
[394783940,1763944246335,-152.832737,0.00039451,120]
[394783942,1763944246344,-151.0,0.00039451,120]
[394783944,1763944246352,-151.891834,0.00039451,120]
[394783946,1763944246362,-151.0,0.00039451,120]
[394783948,1763944246371,-151.0,0.00039451,10]
[394783950,1763944246381,-155.751546,0.00039451,120]
[394783952,1763944246397,-151.0,0.00039451,120]
[394783954,1763944246406,-151.000015,0.00039451,120]
[394783956,1763944246416,-151.0,0.00039451,120]
[394783958,1763944246425,-151.0,0.00039451,120]
[394783960,1763944246434,-155.25634,0.00039451,120]
[394783962,1763944246443,-153.063034,0.00039451,14]
[394783964,1763944246452,-151.0,0.00039451,120]
[394783966,1763944246462,-155.052779,0.00039451,120]
[394783968,1763944246475,-151.0,0.00039451,120]
[394783970,1763944246484,-195.029304,0.00039451,120]
[394783972,1763944246492,-151.0,0.00039451,120]
[394783974,1763944246501,-151.0,0.00039451,120]
[394783976,1763944246512,-151.0,0.00039451,120]
[394783977,1763944246521,-151.0,0.00039451,120]
[394783979,1763944246530,-151.0,0.00039451,120]
[394783981,1763944246539,-151.0,0.00039451,120]
[394783983,1763944246549,-151.0,0.00039451,120]
[394783985,1763944246564,-151.0,0.00039451,120]
[394783987,1763944246573,-500.0,0.00039451,8]
[394783989,1763944246582,-219.036736,0.00039451,120]
[394783992,1763944246591,-151.0,0.00039451,120]
[394783993,1763944246601,-500.0,0.00039451,8]
[394783995,1763944246610,-500.0,0.00039451,8]
[394783998,1763944246620,-500.0,0.00039451,8]
[394784000,1763944246630,-500.0,0.00039452,8]
[394784001,1763944246639,-7323.47241825,0.00039453,2]
[394784003,1763944246648,-1000.0,0.0003946,3]
[394784005,1763944246658,-1000.0,0.0003946,3]
[394784007,1763944246668,-526.24649729,0.00039461,8]
[394784010,1763944246678,-324.1333068,0.00039461,8]
[394784011,1763944246687,-500.0,0.00039461,8]
[394784013,1763944246696,-500.0,0.00039461,8]
[394784015,1763944246707,-500.0,0.00039461,8]
[394784017,1763944246716,-500.0,0.00039461,8]
[394784018,1763944246725,-500.0,0.00039461,8]
[394784019,1763944246737,-500.0,0.00039461,8]
[394784020,1763944246747,-500.0,0.00039461,8]
[394784021,1763944246760,-440.98923791,0.00039461,8]
[394784022,1763944246770,-500.0,0.00039461,8]
[394784023,1763944246780,-500.0,0.00039461,8]
[394784024,1763944246789,-341.2946368,0.00039461,8]
[394784025,1763944246799,-500.0,0.00039461,8]
[394784026,1763944246808,-254.48759795,0.00039461,8]
[394784027,1763944246821,-500.0,0.00039461,8]
[394784028,1763944246830,-500.0,0.00039461,8]
[394784029,1763944246840,-500.0,0.00039461,8]
[394784030,1763944246849,-500.0,0.00039461,8]
[394784031,1763944246859,-272.55669288,0.00039461,8]
[394784032,1763944246869,-500.0,0.00039461,8]
[394784033,1763944246879,-298.34181726,0.00039461,8]
[394784034,1763944246888,-500.0,0.00039461,8]
[394784035,1763944246898,-349.0,0.00039461,8]
[394784036,1763944246907,-500.0,0.00039461,8]
[394784037,1763944246917,-500.0,0.00039461,8]
[394784038,1763944246927,-500.0,0.00039461,8]
[394784039,1763944246936,-500.0,0.00039461,8]
[394784040,1763944246945,-500.0,0.00039461,8]
[394784041,1763944246955,-296.14362121,0.00039461,8]
[394784042,1763944246964,-500.0,0.00039461,8]
[394784043,1763944246974,-265.714565,0.00039461,8]
[394784044,1763944246983,-1100.0,0.00039461,2]
[394784045,1763944246993,-500.0,0.00039461,8]
[394784046,1763944247002,-500.0,0.00039461,8]
[394784047,1763944247012,-500.0,0.00039461,8]
[394784048,1763944247022,-500.0,0.00039461,8]
[394784049,1763944247032,-500.0,0.00039461,2]
[394784050,1763944247041,-500.0,0.00039461,8]
[394784051,1763944247051,-500.0,0.00039461,2]
[394784052,1763944247060,-632.64494355,0.00039461,8]
[394784053,1763944247070,-500.0,0.00039461,8]
[394784054,1763944247080,-500.0,0.00039461,8]
[394784055,1763944247090,-500.0,0.00039461,10]
[394784056,1763944247100,-500.0,0.00039461,8]
[394784057,1763944247109,-500.0,0.00039461,8]
[394784058,1763944247118,-500.0,0.00039461,8]
[394784059,1763944247127,-500.0,0.00039461,8]
[394784060,1763944247137,-500.0,0.00039461,8]
[394784061,1763944247146,-500.0,0.00039461,8]
[394784062,1763944247155,-500.0,0.00039461,8]
[394784063,1763944247164,-500.0,0.00039461,8]
[394784064,1763944247174,-500.0,0.00039461,8]
[394784065,1763944247183,-283.35,0.00039461,8]
[394784066,1763944247192,-500.0,0.00039461,8]
[394784067,1763944247202,-500.0,0.00039461,8]
[394784068,1763944247211,-500.0,0.00039461,2]
[394784069,1763944247220,-500.0,0.00039461,8]
[394784070,1763944247229,-500.0,0.00039461,8]
[394784071,1763944247239,-417.24434341,0.00039461,8]
[394784072,1763944247248,-500.0,0.00039461,8]
[394784073,1763944247257,-500.0,0.00039461,8]
[394784074,1763944247267,-1200.0,0.00039461,2]
[394784075,1763944247277,-500.0,0.00039461,8]
[394784076,1763944247286,-151.0,0.00039461,120]
[394784077,1763944247296,-151.0,0.00039461,120]
[394784078,1763944247305,-216.224869,0.00039461,120]
[394784079,1763944247314,-410.689911,0.00039461,120]
[394784080,1763944247323,-737.456002,0.00039461,120]
[394784081,1763944247332,-410.689911,0.00039461,120]
[394784082,1763944247341,-737.456002,0.00039461,120]
[394784083,1763944247351,-373.936037,0.00039461,120]
[394784084,1763944247362,-410.689911,0.00039461,120]
[394784085,1763944247377,-195.383537,0.00039461,120]
[394784086,1763944247386,-737.456002,0.00039461,120]
[394784087,1763944247395,-373.936037,0.00039461,120]
[394784088,1763944247404,-410.689911,0.00039461,120]
[394784089,1763944247415,-737.456002,0.00039461,120]
[394784090,1763944247424,-397.244348,0.00039461,120]
[394784091,1763944247433,-373.936037,0.00039461,120]
[394784092,1763944247442,-373.936037,0.00039461,120]
[394784093,1763944247452,-397.244348,0.00039461,120]
[394784094,1763944247461,-397.244348,0.00039461,120]
[394784095,1763944247476,-397.244348,0.00039461,120]
[394784096,1763944247487,-190.830468,0.00039461,120]
[394784097,1763944247495,-244.785915,0.00039461,120]
[394784098,1763944247504,-190.830468,0.00039461,120]
[394784099,1763944247514,-244.785915,0.00039461,120]
[394784100,1763944247524,-190.830468,0.00039461,120]
[394784101,1763944247533,-244.785915,0.00039461,120]
[394784102,1763944247542,-1000.0,0.00039471,3]
[394784103,1763944247554,-500.0,0.00039472,8]
[394784104,1763944247563,-500.0,0.00039472,8]
[394784105,1763944247572,-500.0,0.00039472,8]
[394784106,1763944247582,-502.92456939,0.00039472,8]
[394784107,1763944247591,-500.0,0.00039472,8]
[394784108,1763944247601,-500.0,0.00039472,8]
[394784109,1763944247611,-500.0,0.00039472,8]
[394784110,1763944247622,-564.65205134,0.00039472,8]
[394784111,1763944247632,-500.0,0.00039472,8]
[394784112,1763944247642,-500.0,0.00039472,8]
[394784113,1763944247652,-1529.49481,0.00039472,2]
[394784114,1763944247662,-500.0,0.00039472,5]
[394784115,1763944247671,-500.0,0.00039472,5]
[394784116,1763944247681,-500.0,0.00039472,5]
[394784117,1763944247690,-500.0,0.00039472,5]
[394784118,1763944247699,-200.0,0.00039472,5]
[394784119,1763944247709,-500.0,0.00039472,5]
[394784120,1763944247719,-500.0,0.00039472,5]
[394784121,1763944247729,-553.64373807,0.00039472,5]
[394784122,1763944247740,-267.32414549,0.00039472,5]
[394784123,1763944247750,-2329.34764346,0.00039472,5]
[394784124,1763944247759,-500.0,0.00039472,5]
[394784125,1763944247768,-500.0,0.00039472,5]
[394784126,1763944247778,-500.0,0.00039472,5]
[394784127,1763944247787,-250.0,0.00039472,5]
[394784128,1763944247797,-500.0,0.00039472,5]
[394784129,1763944247806,-267.9696451,0.00039472,5]
[394784130,1763944247816,-322.6107,0.00039472,5]
[394784131,1763944247825,-500.0,0.00039472,5]
[394784132,1763944247835,-500.0,0.00039472,5]
[394784133,1763944247844,-334.5472959,0.00039472,5]
[394784134,1763944247854,-500.0,0.00039472,5]
[394784135,1763944247864,-186.48507464,0.00039472,5]
[394784136,1763944247873,-500.0,0.00039472,5]
[394784137,1763944247883,-500.0,0.00039472,5]
[394784138,1763944247893,-500.0,0.00039472,5]
[394784139,1763944247903,-620.0,0.00039472,5]
[394784140,1763944247913,-500.0,0.00039472,5]
[394784141,1763944247922,-642.94,0.00039472,5]
[394784142,1763944247931,-500.0,0.00039472,5]
[394784143,1763944247941,-666.72878,0.00039472,5]
[394784144,1763944247951,-500.0,0.00039472,5]
[394784145,1763944247961,-500.0,0.00039472,5]
[394784146,1763944247971,-691.39774486,0.00039472,5]
[394784147,1763944247980,-500.0,0.00039472,5]
[394784148,1763944247992,-1500.0,0.00039472,5]
[394784149,1763944248001,-716.97946142,0.00039472,5]
[394784150,1763944248011,-1500.0,0.00039472,5]
[394784151,1763944248021,-500.0,0.00039472,5]
[394784152,1763944248030,-474.56279372,0.00039472,5]
[394784153,1763944248040,-1500.0,0.00039472,5]
[394784154,1763944248051,-500.0,0.00039472,5]
[394784155,1763944248061,-1500.0,0.00039472,5]
[394784156,1763944248071,-500.0,0.00039472,5]
[394784157,1763944248081,-578.20924308,0.00039472,5]
[394784158,1763944248091,-1500.0,0.00039472,5]
[394784159,1763944248102,-500.0,0.00039472,5]
[394784160,1763944248112,-578.20924308,0.00039472,5]
[394784161,1763944248122,-1500.0,0.00039472,5]
[394784162,1763944248132,-500.0,0.00039472,5]
[394784163,1763944248142,-1629.86713444,0.00039472,5]
[394784164,1763944248151,-500.0,0.00039472,5]
[394784165,1763944248161,-500.0,0.00039472,5]
[394784166,1763944248170,-500.0,0.00039472,5]
[394784167,1763944248180,-500.0,0.00039472,5]
[394784168,1763944248189,-500.0,0.00039472,5]
[394784169,1763944248199,-500.0,0.00039472,5]
[394784170,1763944248209,-500.0,0.00039472,5]
[394784171,1763944248218,-500.0,0.00039472,5]
[394784172,1763944248228,-500.0,0.00039472,5]
[394784173,1763944248239,-500.0,0.00039472,5]
[394784174,1763944248249,-500.0,0.00039472,5]
[394784175,1763944248259,-500.0,0.00039472,5]
[394784176,1763944248268,-500.0,0.00039472,5]
[394784177,1763944248278,-500.0,0.00039472,5]
[394784178,1763944248288,-500.0,0.00039472,5]
[394784179,1763944248297,-500.0,0.00039472,5]
[394784180,1763944248308,-1000.0,0.00039472,2]
[394784181,1763944248318,-1000.0,0.00039472,3]
[394784182,1763944248327,-151.0,0.00039472,120]
[394784183,1763944248337,-151.0,0.00039472,120]
[394784184,1763944248346,-151.0,0.00039472,120]
[394784185,1763944248355,-290.456037,0.00039472,120]
[394784186,1763944248365,-290.456037,0.00039472,120]
[394784187,1763944248375,-290.456037,0.00039472,120]
[394784188,1763944248385,-290.456037,0.00039472,120]
[394784189,1763944248394,-227.514157,0.00039472,30]
[394784190,1763944248403,-227.514157,0.00039472,30]
[394784191,1763944248413,-169.481391,0.00039472,120]
[394784192,1763944248422,-227.514157,0.00039472,30]
[394784193,1763944248432,-169.481391,0.00039472,120]
[394784194,1763944248441,-227.514157,0.00039472,30]
[394784195,1763944248451,-169.481391,0.00039472,120]
[394784196,1763944248461,-169.481391,0.00039472,120]
[394784197,1763944248471,-500.0,0.00039473,5]
[394784198,1763944248483,-500.0,0.00039473,5]
[394784199,1763944248492,-500.0,0.00039473,5]
[394784200,1763944248503,-216.87184607,0.00039473,5]
[394784201,1763944248512,-500.0,0.00039473,5]
[394784202,1763944248522,-500.0,0.00039473,5]
[394784203,1763944248531,-337.06854993,0.00039473,5]
[394784204,1763944248541,-500.0,0.00039473,5]
[394784205,1763944248552,-161.41194121,0.00039473,5]
[394784206,1763944248562,-500.0,0.00039473,5]
[394784207,1763944248571,-500.0,0.00039473,5]
[394784208,1763944248580,-500.0,0.00039473,5]
[394784209,1763944248595,-500.0,0.00039473,5]
[394784210,1763944248605,-1882.69257254,0.00039473,2]
[394784211,1763944248614,-200.0,0.00039473,2]
[394784212,1763944248624,-1247.0,0.00039473,7]
[394784213,1763944248634,-1247.0,0.00039473,7]
[394784214,1763944248644,-1247.0,0.00039473,7]
[394784215,1763944248653,-1247.0,0.00039473,7]
[394784216,1763944248662,-1238.0,0.00039473,7]
[394784217,1763944248672,-1247.0,0.00039473,7]
[394784218,1763944248682,-1247.0,0.00039473,7]
[394784219,1763944248693,-1247.0,0.00039473,7]
[394784220,1763944248703,-163.15622689,0.00039502,15]
[394784221,1763944248712,-232.63813425,0.00039514,30]
[394784222,1763944248721,-5215.41278733,0.00039543,2]
[394784223,1763944248732,-1100.0,0.0003956,2]
[394784224,1763944248742,-1100.0,0.0003956,3]
[394784225,1763944248751,-1100.0,0.0003956,4]
[394784226,1763944248760,-1100.0,0.0003956,2]
[394784227,1763944248770,-1200.0,0.0003956,2]
[394784228,1763944248779,-500.0,0.00039581,8]
[394784229,1763944248789,-500.0,0.00039581,8]
[394784230,1763944248798,-500.0,0.00039581,8]
[394784231,1763944248807,-500.0,0.00039581,8]
[394784232,1763944248816,-1318.01,0.00039582,30]
[394784233,1763944248825,-500.0,0.00039582,8]
[394784234,1763944248835,-500.0,0.00039613,8]
[394784235,1763944248845,-500.0,0.00039613,8]
[394784236,1763944248854,-500.0,0.00039613,8]
[394784237,1763944248864,-325.67830791,0.00039613,8]
[394784238,1763944248874,-629.17061567,0.00039613,8]
[394784239,1763944248884,-500.0,0.00039613,8]
[394784240,1763944248893,-500.0,0.00039613,8]
[394784241,1763944248902,-500.0,0.00039613,8]
[394784242,1763944248912,-500.0,0.00039613,8]
[394784243,1763944248922,-500.0,0.00039613,8]
[394784244,1763944248931,-500.0,0.00039613,8]
[394784245,1763944248941,-500.0,0.00039613,8]
[394784246,1763944248951,-500.0,0.00039613,8]
[394784247,1763944248960,-322.30879491,0.00039614,8]
[394784248,1763944248972,-500.0,0.00039614,8]
[394784249,1763944248985,-500.0,0.00039614,8]
[394784250,1763944248995,-323.17524365,0.00039614,8]
[394784251,1763944249004,-500.0,0.00039614,8]
[394784252,1763944249014,-500.0,0.00039614,8]
[394784253,1763944249025,-225.61,0.00039614,8]
[394784254,1763944249035,-500.0,0.00039614,8]
[394784255,1763944249044,-500.0,0.00039614,8]
[394784256,1763944249054,-500.0,0.00039614,8]
[394784257,1763944249063,-500.0,0.00039614,8]
[394784258,1763944249072,-500.0,0.00039614,8]
[394784259,1763944249082,-500.0,0.00039614,8]
[394784260,1763944249092,-576.19,0.00039614,8]
[394784261,1763944249102,-528.72304304,0.00039614,8]
[394784262,1763944249112,-1472.89,0.00039614,8]
[394784263,1763944249122,-500.0,0.00039614,8]
[394784264,1763944249132,-500.0,0.00039614,8]
[394784265,1763944249141,-500.0,0.00039614,8]
[394784266,1763944249151,-500.0,0.00039614,8]
[394784267,1763944249160,-500.0,0.00039614,8]
[394784268,1763944249170,-500.0,0.00039614,8]
[394784269,1763944249179,-500.0,0.00039614,8]
[394784270,1763944249189,-500.0,0.00039614,8]
[394784271,1763944249199,-610.54,0.00039614,2]
[394784272,1763944249209,-1839.34,0.00039614,8]
[394784273,1763944249219,-645.13,0.00039614,8]
[394784274,1763944249228,-500.0,0.00039614,8]
[394784275,1763944249238,-302.75898331,0.00039614,8]
[394784276,1763944249247,-500.0,0.00039614,8]
[394784277,1763944249257,-500.0,0.00039614,8]
[394784278,1763944249267,-500.0,0.00039614,8]
[394784279,1763944249277,-500.0,0.00039614,8]
[394784280,1763944249287,-500.0,0.00039614,8]
[394784281,1763944249298,-369.71272993,0.00039618,2]
[394784282,1763944249309,-500.0,0.00039621,5]
[394784283,1763944249318,-500.0,0.00039625,30]
[394784284,1763944249328,-1669.0,0.00039648,2]
[394784285,1763944249338,-451.75,0.00039654,2]
[394784286,1763944249348,-625.0,0.00039654,20]
[394784287,1763944249358,-1100.0,0.0003966,2]
[394784288,1763944249368,-1100.0,0.0003966,3]
[394784289,1763944249377,-1100.0,0.0003966,2]
[394784290,1763944249387,-1200.0,0.0003966,2]
[394784291,1763944249396,-159.84,0.00039681,2]
[394784292,1763944249406,-223.0315306,0.00039687,30]
[394784293,1763944249415,-150.0,0.00039718,120]
[394784294,1763944249425,-500.0,0.00039721,8]
[394784295,1763944249435,-500.0,0.00039721,8]
[394784296,1763944249444,-500.0,0.00039721,8]
[394784297,1763944249454,-500.0,0.00039721,8]
[394784298,1763944249464,-287.85314824,0.00039725,8]
[394784299,1763944249476,-500.0,0.00039725,8]
[394784300,1763944249485,-238.78511737,0.00039725,8]
[394784301,1763944249495,-500.0,0.00039725,8]
[394784302,1763944249504,-500.0,0.00039726,8]
[394784303,1763944249515,-500.0,0.00039735,8]
[394784304,1763944249526,-500.0,0.00039735,8]
[394784305,1763944249535,-500.0,0.00039735,8]
[394784306,1763944249544,-500.0,0.00039735,8]
[394784307,1763944249556,-500.0,0.00039735,8]
[394784308,1763944249566,-500.0,0.00039735,8]
[394784309,1763944249575,-500.0,0.00039735,8]
[394784310,1763944249585,-500.0,0.00039735,8]
[394784311,1763944249595,-500.0,0.00039735,8]
[394784312,1763944249605,-500.0,0.00039735,8]
[394784313,1763944249615,-500.0,0.00039735,8]
[394784314,1763944249625,-500.0,0.00039735,8]
[394784315,1763944249636,-303.01884933,0.00039735,8]
[394784316,1763944249646,-500.0,0.00039735,8]
[394784317,1763944249655,-500.0,0.00039735,8]
[394784318,1763944249665,-500.0,0.00039735,8]
[394784319,1763944249675,-500.0,0.00039735,2]
[394784320,1763944249684,-500.0,0.00039735,2]
[394784321,1763944249695,-500.0,0.00039735,8]
[394784322,1763944249705,-500.0,0.00039735,8]
[394784323,1763944249715,-500.0,0.00039735,8]
[394784324,1763944249726,-500.0,0.00039735,8]
[394784325,1763944249735,-242.78920643,0.00039735,8]
[394784326,1763944249746,-500.0,0.00039735,8]
[394784327,1763944249917,-500.0,0.00039735,8]
[394784328,1763944249926,-500.0,0.00039735,8]
[394784329,1763944249935,-500.0,0.00039735,8]
[394784330,1763944249944,-500.0,0.00039735,8]
[394784331,1763944249954,-500.0,0.00039735,8]
[394784332,1763944249964,-500.0,0.00039735,8]
[394784333,1763944249974,-500.0,0.00039735,8]
[394784334,1763944249983,-500.0,0.00039735,8]
[394784335,1763944249993,-500.0,0.00039735,8]
[394784336,1763944250002,-452.48491305,0.00039735,8]
[394784337,1763944250011,-500.0,0.00039735,8]
[394784338,1763944250021,-500.0,0.00039735,8]
[394784339,1763944250030,-7323.47241825,0.00039743,2]
[394784340,1763944250039,-213.87957471,0.00039746,8]
[394784341,1763944250049,-186.69,0.00039746,8]
[394784342,1763944250059,-1100.0,0.0003976,2]
[394784343,1763944250068,-1100.0,0.0003976,3]
[394784344,1763944250078,-1100.0,0.0003976,4]
[394784345,1763944250087,-844.469375,0.0003977,2]
[394784346,1763944250096,-166.66,0.00039782,30]
[394784347,1763944250106,-5215.41278733,0.00039815,15]
[394784348,1763944250115,-150.0,0.00039816,30]
[394784349,1763944250125,-150.0,0.00039816,30]
[394784350,1763944250134,-255.2990884,0.00039816,30]
[394784351,1763944250144,-163.15622689,0.00039852,15]
[394784352,1763944250154,-596.55730372,0.00039855,8]
[394784353,1763944250163,-500.0,0.00039855,8]
[394784354,1763944250173,-500.0,0.00039855,8]
[394784355,1763944250183,-500.0,0.00039855,8]
[394784356,1763944250193,-1318.01,0.00039856,30]
[394784357,1763944250203,-500.0,0.00039856,8]
[394784358,1763944250213,-1100.0,0.0003986,2]
[394784359,1763944250223,-1100.0,0.0003986,3]
[394784360,1763944250235,-299.0,0.00039866,7]
[394784361,1763944250245,-200.0,0.00039868,2]
[394784362,1763944250255,-500.0,0.00039887,8]
[394784363,1763944250264,-500.0,0.00039887,8]
[394784364,1763944250274,-312.0110384,0.00039887,8]
[394784365,1763944250285,-500.0,0.00039887,8]
[394784366,1763944250294,-500.0,0.00039887,8]
[394784367,1763944250304,-500.0,0.00039887,8]
[394784368,1763944250313,-500.0,0.00039887,8]
[394784369,1763944250323,-500.0,0.00039887,8]
[394784370,1763944250332,-500.0,0.00039887,8]
[394784371,1763944250342,-500.0,0.00039887,8]
[394784372,1763944250351,-500.0,0.00039887,8]
[394784373,1763944250361,-500.0,0.00039888,8]
[394784374,1763944250371,-500.0,0.00039888,8]
[394784375,1763944250380,-500.0,0.00039888,8]